bitfinex/quotes_ETHUSD_20240820
["timestamp","ask_amount","ask_price","bid_price","bid_amount"]
[1724127746580,4.9922524,2671.0,2670.9,0.199591]
[1724127746762,4.9922524,2671.0,2670.9,0.39442411]
[1724127747937,1.576,2671.1,2670.9,0.39442411]
[1724127748594,5.31985,2671.1,2670.9,0.39442411]
[1724127749767,1.576,2671.1,2670.9,0.39442411]
[1724127750192,6.13732,2671.7,2671.1,3.74364]
[1724127750516,6.13732,2671.7,2671.0,6.04761]
[1724127750517,9.06229,2671.6,2671.0,6.04761]
[1724127750672,1.576,2671.4,2671.2,0.19464038]
[1724127750870,0.613732,2671.7,2671.1,0.19469772]
[1724127750871,5.31949,2671.3,2671.1,0.19469772]
[1724127751075,5.31949,2671.3,2670.9,0.199591]
[1724127754779,1.576,2671.3,2670.9,0.199591]
[1724127756266,5.31951,2671.3,2670.9,0.199591]
[1724127757366,5.31951,2671.3,2671.0,0.19471111]
[1724127760840,3.74377,2671.1,2671.0,0.19471111]
[1724127763693,5.31951,2671.3,2671.0,0.19471111]
[1724127763921,1.576,2671.3,2671.0,0.19471111]
[1724127765406,5.31951,2671.3,2671.0,0.19471111]
[1724127767412,9.06354,2671.1,2671.0,0.19471111]
[1724127767703,10.574598,2671.1,2671.0,0.19471111]
[1724127768947,6.830828,2671.1,2671.0,0.19471111]
[1724127769126,5.31977,2671.1,2671.0,0.19471111]
[1724127769437,1.576,2671.3,2671.0,2.51791111]
[1724127769643,5.31957,2671.3,2671.0,0.19471111]
[1724127770443,1.576,2671.1,2671.0,0.19471111]
[1724127770798,5.31977,2671.1,2671.0,0.19471111]
[1724127771003,6.461771,2671.1,2671.0,0.19471111]
[1724127771917,10.205541,2671.1,2671.0,0.19471111]
[1724127772247,3.74391,2671.0,2670.9,0.199591]
[1724127772660,3.74391,2671.0,2670.9,0.3943879]
[1724127773502,2.718001,2671.1,2670.9,0.3943879]
[1724127773676,3.74391,2671.0,2670.9,0.3943879]
[1724127774277,5.0001251,2671.0,2670.9,0.3943879]
[1724127776995,3.74378,2671.1,2670.9,0.3943879]
[1724127777291,1.576,2671.0,2670.9,0.3943879]
[1724127777882,5.31991,2671.0,2670.9,0.3943879]
[1724127780061,7.48685,2671.4,2671.0,2.4561]
[1724127780299,3.74329,2671.5,2671.0,2.4561]
[1724127780610,5.31936,2671.4,2671.1,0.19462532]
[1724127782212,3.0,2671.8,2671.1,0.19462532]
[1724127782387,3.74203,2672.4,2671.7,2.3634]
[1724127782589,1.576,2672.2,2671.8,0.19395516]
[1724127782755,1.576,2672.0,2671.7,2.3634]
[1724127782961,1.576,2671.8,2671.4,6.10663]
[1724127783199,1.576,2671.6,2671.2,6.09715]
[1724127783513,1.576,2671.8,2671.3,4.353085]
[1724127783802,1.576,2671.8,2671.2,6.09715]
[1724127783803,3.74295,2671.7,2671.2,6.09715]
[1724127784005,1.576,2671.6,2671.2,6.09715]
[1724127784490,1.576,2671.6,2671.2,2.3536]
[1724127785609,1.576,2671.6,2671.2,6.09723]
[1724127785811,1.576,2671.6,2671.2,2.3536]
[1724127787509,1.576,2671.6,2671.3,0.19427536]
[1724127787925,1.576,2671.6,2671.2,2.3536]
[1724127788129,3.74295,2671.7,2671.4,0.19418959]
[1724127788276,1.576,2671.4,2671.3,0.19427536]
[1724127788618,2.0172095,2671.4,2671.0,7.48782]
[1724127788784,1.576,2671.4,2671.0,3.74391]
[1724127789402,1.576,2671.4,2671.0,7.48774]
[1724127789733,5.31943,2671.4,2670.9,2.513691]
[1724127790107,1.576,2671.0,2670.9,0.199591]
[1724127791139,5.31972,2671.2,2670.9,0.199591]
[1724127791435,1.576,2671.2,2670.9,0.199591]
[1724127792245,1.576,2671.4,2670.9,4.3379401]
[1724127792446,3.0,2671.8,2671.1,3.74369]
[1724127792742,1.576,2671.5,2671.1,3.74371]
[1724127792900,1.576,2671.5,2671.1,3.74368]
[1724127793940,1.576,2671.5,2671.1,7.48737]
[1724127794300,1.576,2671.5,2671.1,3.74368]
[1724127794493,1.576,2671.5,2671.0,2.333]
[1724127794494,5.3193,2671.5,2671.0,2.333]
[1724127794742,7.7601,2671.5,2671.0,2.333]
[1724127795034,8.910419,2671.5,2671.0,2.333]
[1724127795237,8.910419,2671.5,2671.0,6.07689]
[1724127796294,8.910419,2671.5,2671.0,2.333]
[1724127796494,8.910419,2671.5,2671.0,6.0769]
[1724127798299,8.910419,2671.5,2671.0,2.333]
[1724127798493,8.910419,2671.5,2671.0,6.0769]
[1724127798798,7.7601,2671.5,2671.0,6.0769]
[1724127801445,1.576,2671.5,2671.0,2.333]
[1724127801655,2.3543,2672.0,2671.4,3.74333]
[1724127801941,1.576,2671.8,2671.4,3.74333]
[1724127802498,1.576,2671.8,2671.5,0.1941633]
[1724127804554,1.576,2671.8,2671.5,3.9373533]
[1724127804702,1.576,2671.8,2671.5,0.1941633]
[1724127805826,3.74268,2671.9,2671.5,0.1941633]
[1724127805827,1.576,2671.6,2671.5,0.1941633]
[1724127807006,1.576,2671.6,2671.2,6.00596]
[1724127807256,1.576,2671.6,2671.3,0.19413577]
[1724127807612,1.576,2671.6,2671.2,6.00596]
[1724127807919,1.576,2671.6,2671.3,0.19413577]
[1724127808252,1.576,2671.6,2671.2,6.00596]
[1724127808454,1.576,2671.6,2671.4,0.19405]
[1724127808750,1.576,2671.6,2671.3,0.19413577]
[1724127808904,1.576,2671.6,2671.5,0.19396423]
[1724127809110,1.576,2671.6,2671.4,0.19405]
[1724127809306,1.576,2671.6,2671.5,0.19396423]
[1724127809730,1.576,2671.6,2671.3,3.74349]
[1724127809906,1.576,2671.6,2671.5,0.19396423]
[1724127810107,1.576,2671.6,2671.4,0.19405]
[1724127810410,1.576,2671.6,2671.5,0.19396423]
[1724127810637,1.576,2671.6,2671.2,6.00595]
[1724127810960,1.576,2671.6,2671.3,0.19415903]
[1724127811262,1.576,2671.6,2671.3,3.74346]
[1724127811412,1.576,2671.6,2671.4,0.19407326]
[1724127812054,6.04146,2671.9,2671.4,0.19407326]
[1724127812055,1.576,2671.8,2671.5,3.74321]
[1724127812403,1.576,2671.8,2671.6,0.19389915]
[1724127813809,1.576,2671.8,2671.4,3.74323]
[1724127814025,1.576,2671.8,2671.5,0.19398491]
[1724127816478,9.95924,2672.1,2671.6,2.2527]
[1724127816774,9.95924,2672.1,2671.5,3.93712491]
[1724127816775,1.576,2671.8,2671.5,3.93712491]
[1724127816951,1.576,2671.8,2671.7,0.1938134]
[1724127817160,6.21677,2672.1,2671.6,0.19387332]
[1724127817329,1.576,2672.0,2671.7,0.19378757]
[1724127819097,3.74183,2672.5,2671.9,2.4369]
[1724127819226,1.576,2672.5,2672.2,3.74223]
[1724127819590,1.576,2672.5,2672.3,0.19322151]
[1724127820079,1.576,2672.5,2672.4,0.19306346]
[1724127820431,1.576,2672.5,2672.1,3.74229]
[1724127820631,1.576,2672.5,2672.2,0.19323487]
[1724127820961,2.107768,2672.5,2672.0,7.48479]
[1724127821271,1.576,2672.5,2672.0,7.48479]
[1724127821478,1.576,2672.3,2672.1,0.19326376]
[1724127822876,1.576,2672.5,2672.1,0.19326376]
[1724127823257,1.576,2672.5,2672.2,3.74214]
[1724127823459,1.576,2672.5,2672.3,0.19309233]
[1724127823655,6.17829,2672.8,2672.3,3.74198]
[1724127823859,1.576,2672.6,2672.4,3.93487754]
[1724127824714,1.576,2672.6,2672.4,0.19295754]
[1724127825232,1.576,2672.6,2672.2,7.48425]
[1724127825233,2.351431,2672.6,2672.2,3.7421]
[1724127825368,2.351431,2672.6,2672.5,0.19287184]
[1724127825573,2.351431,2672.6,2672.2,7.48423]
[1724127825745,2.351431,2672.6,2672.5,0.19287184]
[1724127825940,2.351431,2672.6,2672.3,3.74209]
[1724127826185,1.576,2672.6,2672.5,0.19287184]
[1724127826640,1.576,2672.6,2672.3,3.74209]
[1724127826844,1.576,2672.6,2672.4,0.19295754]
[1724127827487,1.576,2672.6,2672.2,3.7422]
[1724127827789,1.576,2672.4,2672.2,3.7422]
[1724127831048,1.576,2672.4,2671.9,2.3013]
[1724127831049,3.9032,2672.4,2672.0,3.74241]
[1724127831281,1.576,2672.2,2672.0,3.74241]
[1724127832565,1.576,2672.2,2672.1,0.19293823]
[1724127833926,1.576,2672.2,2671.9,3.74263]
[1724127834105,1.576,2672.2,2672.1,0.19293823]
[1724127834293,1.576,2672.2,2672.0,0.19302396]
[1724127834498,1.576,2672.2,2671.8,3.74275]
[1724127834499,1.576,2672.2,2671.8,3.74279]
[1724127834749,1.576,2672.2,2672.1,0.19293823]
[1724127835039,2.714739,2672.2,2671.8,3.74279]
[1724127835243,2.714739,2672.2,2672.1,0.19293823]
[1724127835398,2.714739,2672.2,2671.8,3.74279]
[1724127835598,1.576,2672.2,2672.1,0.19293823]
[1724127836109,1.576,2672.2,2671.9,3.74264]
[1724127836315,1.576,2672.2,2672.1,0.19293823]
[1724127836516,1.576,2672.2,2671.9,3.74264]
[1724127836839,1.576,2672.2,2672.1,0.19293823]
[1724127836994,1.576,2672.2,2672.0,0.19302396]
[1724127841807,1.576,2672.5,2672.2,3.74222]
[1724127842005,1.576,2672.5,2672.1,3.74236]
[1724127842307,1.576,2672.5,2672.2,0.19285251]
[1724127844419,1.576,2672.5,2672.2,3.93507251]
[1724127846048,4.055,2672.3,2672.2,0.19285251]
[1724127846222,9.06018,2672.3,2672.2,0.19285251]
[1724127846423,6.22169,2671.9,2671.4,3.74327]
[1724127846667,1.576,2671.7,2671.4,3.74327]
[1724127846874,3.74197,2672.4,2671.0,4.5476517]
[1724127846875,7.79821,2671.5,2671.0,4.5476517]
[1724127847024,7.79821,2671.5,2671.0,3.74382]
[1724127847376,5.31921,2671.5,2671.0,3.74382]
[1724127847586,5.31986,2671.1,2670.9,0.199591]
[1724127847844,3.74391,2671.0,2670.9,0.199591]
[1724127847995,1.576,2671.1,2670.9,0.199591]
[1724127848969,1.576,2671.3,2670.9,3.943561]
[1724127849154,1.576,2671.3,2671.0,3.7439]
[1724127849496,1.576,2671.3,2670.9,0.199591]
[1724127849706,1.576,2671.3,2670.9,3.943591]
[1724127850063,4.0272,2671.5,2671.0,3.74389]
[1724127850358,1.576,2671.5,2671.0,3.74389]
[1724127850696,1.576,2671.5,2671.0,3.74383]
[1724127851000,2.782229,2671.5,2671.0,3.74383]
[1724127851389,1.576,2671.5,2671.1,3.74375]
[1724127852232,1.576,2671.5,2671.0,3.74383]
[1724127852388,3.74315,2671.6,2671.0,3.74383]
[1724127852732,3.74315,2671.6,2670.9,3.943621]
[1724127852931,3.74326,2671.5,2670.9,3.943621]
[1724127853233,7.48633,2671.6,2671.0,3.74388]
[1724127853386,1.048633,2671.5,2671.0,3.74388]
[1724127855019,7.48631,2671.6,2671.0,3.74388]
[1724127855385,3.74325,2671.5,2671.0,3.74388]
[1724127855552,3.74315,2671.6,2671.0,3.74388]
[1724127855692,3.0,2671.7,2671.1,2.3387]
[1724127855891,3.0,2671.7,2671.2,3.7435]
[1724127856090,6.00586,2671.8,2671.2,3.7435]
[1724127857135,6.906446,2671.8,2671.0,3.74378]
[1724127857541,3.7431,2671.6,2671.0,3.74378]
[1724127857742,3.74338,2671.4,2670.9,6.300441]
[1724127857895,3.74338,2671.4,2670.9,0.199591]
[1724127858358,3.74338,2671.4,2670.9,3.943641]
[1724127858494,3.74386,2671.1,2670.9,0.199591]
[1724127858694,7.5261,2671.6,2670.9,3.943631]
[1724127858695,3.0,2671.5,2670.9,3.943631]
[1724127859009,3.74335,2671.4,2670.9,3.943561]
[1724127859917,3.74352,2671.3,2670.9,0.199591]
[1724127861124,4.792207,2671.3,2670.9,0.199591]
[1724127862611,4.792207,2671.3,2671.0,0.19451978]
[1724127863152,3.74363,2671.2,2671.0,0.19451978]
[1724127864271,1.048687,2671.3,2671.0,0.19451978]
[1724127864417,3.74335,2671.4,2671.0,0.19451978]
[1724127864615,3.74371,2671.2,2671.0,0.19451978]
[1724127867270,7.48709,2671.3,2671.0,0.19451978]
[1724127867561,3.0,2671.5,2671.0,0.19451978]
[1724127867710,3.74344,2671.4,2671.0,0.19451978]
[1724127868112,3.7435,2671.3,2671.0,0.19451978]
[1724127869753,3.7435,2671.3,2670.9,3.943641]
[1724127869944,3.7435,2671.3,2671.1,0.19443399]
[1724127870148,3.7435,2671.3,2670.9,3.943641]
[1724127870353,3.7435,2671.3,2671.2,0.19440766]
[1724127870657,3.7435,2671.3,2670.9,3.943641]
[1724127870876,3.7435,2671.3,2671.2,0.19440766]
[1724127871049,3.7435,2671.3,2671.0,2.435]
[1724127871357,3.7435,2671.3,2671.1,0.19449344]
[1724127872554,3.74363,2671.2,2671.1,0.19449344]
[1724127872767,6.04113,2671.2,2671.1,0.19449344]
[1724127873062,3.74363,2671.2,2670.9,0.199591]
[1724127873219,3.74363,2671.2,2671.1,0.19449602]
[1724127873422,3.74363,2671.2,2671.0,0.19458181]
[1724127873615,3.74363,2671.2,2671.1,0.19449602]
[1724127874051,4.649943,2671.2,2670.9,0.199591]
[1724127874262,4.649943,2671.2,2671.1,0.19449602]
[1724127874446,1.576,2671.1,2671.0,0.19458181]
[1724127874661,7.48782,2671.0,2670.9,0.199591]
[1724127874845,8.7275033,2671.0,2670.9,0.199591]
[1724127875051,11.7275033,2671.0,2670.9,0.199591]
[1724127879341,14.1070033,2671.0,2670.9,0.199591]
[1724127879651,14.1070033,2671.0,2669.5,0.58700923]
[1724127879652,2.3795,2670.5,2669.8,3.74558]
[1724127879856,1.576,2670.3,2669.8,6.14292]
[1724127880063,1.576,2670.3,2669.9,0.18943267]
[1724127881847,1.576,2670.1,2669.9,0.18943267]
[1724127882081,6.05161,2670.0,2669.9,0.18943267]
[1724127882390,3.74553,2669.9,2669.5,3.74]
[1724127882989,7.49071,2670.0,2669.5,3.74]
[1724127883154,7.49074,2670.0,2669.5,3.74]
[1724127883685,3.74531,2670.0,2669.5,3.74]
[1724127884239,1.576,2670.1,2669.5,3.74]
[1724127884681,1.576,2670.1,2669.6,3.74578]
[1724127885086,1.576,2669.9,2669.5,3.74]
[1724127885286,5.32181,2669.7,2669.5,3.74]
[1724127885493,1.576,2669.7,2669.5,3.74]
[1724127885645,3.74587,2669.6,2669.5,3.74]
[1724127885848,9.79804,2669.6,2669.5,3.74]
[1724127886047,3.74641,2669.3,2668.6,2.4661]
[1724127886290,3.74641,2669.3,2668.7,3.74712]
[1724127886291,1.576,2669.1,2668.7,3.74712]
[1724127886589,3.74639,2669.3,2668.7,3.74712]
[1724127886744,3.74639,2669.3,2668.7,3.74705]
[1724127886945,3.74639,2669.3,2668.8,3.74696]
[1724127887922,3.74722,2668.7,2668.1,3.74788]
[1724127888145,3.74759,2668.4,2667.8,3.74831]
[1724127888875,3.74771,2668.3,2667.8,3.74831]
[1724127889246,4.49563,2669.3,2667.9,2.4661]
[1724127889443,2.3063,2669.7,2668.6,6.21334]
[1724127889694,2.3063,2669.7,2668.8,3.74692]
[1724127889877,3.74624,2669.4,2668.8,3.74691]
[1724127890076,3.74615,2669.5,2668.2,2.4661]
[1724127890246,2.3063,2669.3,2668.2,2.4661]
[1724127890602,2.3063,2669.3,2668.2,3.74776]
[1724127890603,3.7471,2668.8,2668.2,3.74776]
[1724127890896,3.7468,2669.0,2668.5,3.74734]
[1724127891862,7.49363,2669.0,2668.3,7.4952]
[1724127892048,3.74688,2668.9,2668.3,3.74757]
[1724127892243,0.749368,2668.9,2668.4,0.18491891]
[1724127892489,3.747,2668.8,2668.4,0.18491891]
[1724127892794,3.747,2668.8,2668.2,3.74783]
[1724127893012,3.747,2668.8,2668.2,7.4956]
[1724127893013,3.0,2668.7,2668.2,7.4956]
[1724127893167,3.7468,2669.0,2668.3,0.18500487]
[1724127893368,6.7469,2668.9,2668.4,3.74747]
[1724127893710,3.0,2668.9,2668.5,0.18483295]
[1724127893918,0.23063,2669.2,2668.5,0.18483295]
[1724127894071,3.74621,2669.4,2668.8,3.74692]
[1724127894271,3.74621,2669.4,2668.5,0.44992625]
[1724127894272,2.3063,2669.7,2668.5,0.44992625]
[1724127894573,3.74667,2669.1,2668.5,3.74732]
[1724127894794,3.74667,2669.1,2668.6,0.184747]
[1724127895004,2.3063,2669.2,2668.7,3.74713]
[1724127895211,2.3063,2669.2,2668.6,3.74723]
[1724127895429,0.605269,2669.1,2668.8,0.18457512]
[1724127895596,7.351869,2669.1,2668.7,0.18466106]
[1724127895913,7.351869,2669.1,2668.9,0.18448919]
[1724127896087,7.351869,2669.1,2668.8,0.18457512]
[1724127896415,7.351869,2669.1,2668.9,0.18448919]
[1724127896633,0.9658169,2669.0,2668.9,0.18448919]
[1724127896838,0.9658169,2669.0,2668.6,3.74723]
[1724127897140,0.9658169,2669.0,2668.5,3.74737]
[1724127897303,3.0,2669.1,2668.5,3.74737]
[1724127897499,3.0,2669.4,2668.6,0.184747]
[1724127897831,3.74659,2669.1,2668.6,0.184747]
[1724127898129,3.74693,2668.9,2668.6,0.184747]
[1724127898328,0.374693,2668.8,2668.4,3.74752]
[1724127898532,0.374693,2668.8,2668.0,6.21416]
[1724127898730,0.374693,2668.8,2668.2,3.74774]
[1724127898889,0.374693,2668.8,2668.3,0.18500487]
[1724127899097,0.374693,2668.8,2668.2,3.74774]
[1724127899291,0.374693,2668.8,2668.4,3.74753]
[1724127899699,0.374693,2668.8,2668.5,0.18483295]
[1724127900822,4.121783,2668.8,2668.2,7.49548]
[1724127901015,4.121783,2668.8,2668.6,0.1851256]
[1724127901332,4.121783,2668.8,2668.3,3.74769]
[1724127901533,0.374693,2668.8,2668.3,3.74769]
[1724127901746,0.374693,2668.8,2668.4,0.18529751]
[1724127901947,0.7868613,2668.7,2668.4,0.18529751]
[1724127902444,0.7868613,2668.7,2668.2,3.74772]
[1724127902601,0.7868613,2668.7,2668.5,0.18521155]
[1724127902796,0.7868613,2668.7,2668.3,3.74759]
[1724127903015,3.74693,2668.9,2668.3,3.93297347]
[1724127903308,9.09967,2669.1,2668.5,3.74734]
[1724127903509,3.74683,2669.0,2668.6,0.1851256]
[1724127903851,3.74683,2669.0,2668.4,7.4949]
[1724127903852,3.0,2668.9,2668.4,7.4949]
[1724127904140,2.353,2669.1,2668.4,3.74743]
[1724127904455,2.353,2669.1,2668.6,3.74719]
[1724127904456,4.731175,2669.1,2668.6,3.74719]
[1724127904797,4.731175,2669.1,2668.7,0.18503966]
[1724127905545,4.731175,2669.1,2668.4,7.49502]
[1724127905546,3.74673,2669.0,2668.4,7.49502]
[1724127905698,3.74673,2669.0,2668.5,3.93298016]
[1724127906040,4.5945205,2669.0,2668.5,3.93298016]
[1724127906545,3.7469,2668.9,2668.5,0.18559016]
[1724127907599,3.74701,2668.8,2668.5,0.18559016]
[1724127907998,3.74701,2668.8,2668.3,3.74764]
[1724127908146,3.74701,2668.8,2668.6,0.18550421]
[1724127908316,0.374701,2668.7,2668.2,7.4955]
[1724127908651,0.374701,2668.7,2668.3,0.17961639]
[1724127909143,0.374701,2668.7,2668.4,0.17966876]
[1724127909351,0.374701,2668.7,2668.2,3.74774]
[1724127909518,0.374701,2668.7,2668.3,0.17977488]
[1724127909720,2.2551,2668.9,2668.4,3.74746]
[1724127909925,2.2551,2668.9,2668.5,0.17960296]
[1724127910440,3.0,2669.0,2668.5,3.92694296]
[1724127910757,3.0,2669.0,2668.6,3.74726]
[1724127910919,3.0,2669.0,2668.7,0.17943107]
[1724127911120,0.99800711,2668.9,2668.7,0.17943107]
[1724127911335,3.0,2669.0,2668.7,0.17943107]
[1724127913264,6.0798,2669.9,2669.2,3.74636]
[1724127913432,6.0798,2669.9,2669.2,7.49272]
[1724127913433,3.74581,2669.7,2669.2,7.49272]
[1724127913634,4.728371,2669.7,2669.3,0.17887523]
[1724127913823,4.728371,2669.7,2669.3,3.92516523]
[1724127914475,8.474191,2669.7,2669.3,0.17887523]
[1724127914658,3.74609,2669.5,2669.3,0.17887523]
[1724127915030,3.74616,2669.4,2668.8,3.74698]
[1724127915233,3.74659,2669.1,2668.6,3.74725]
[1724127915431,3.74659,2669.1,2668.9,0.17918111]
[1724127915631,3.74659,2669.1,2668.6,3.74725]
[1724127915830,3.74657,2669.2,2669.0,0.17899192]
[1724127916030,7.49314,2669.2,2668.7,3.74712]
[1724127916254,8.487034,2669.2,2669.1,0.17890601]
[1724127916456,3.74662,2669.1,2668.6,3.74727]
[1724127916640,4.740464,2669.2,2668.6,3.74727]
[1724127916641,4.740344,2669.2,2668.6,3.74721]
[1724127916843,4.740344,2669.2,2668.7,3.74705]
[1724127918229,8.486874,2669.2,2668.7,3.74705]
[1724127918521,8.486874,2669.2,2668.6,3.74725]
[1724127918723,4.740344,2669.2,2668.6,3.74725]
[1724127918957,4.740344,2669.2,2668.6,7.4945]
[1724127919164,8.486864,2669.2,2668.6,3.74725]
[1724127919659,4.740344,2669.2,2668.6,3.74725]
[1724127919843,2.4458,2669.3,2668.6,3.74725]
[1724127919844,3.74624,2669.4,2668.6,3.74722]
[1724127920044,3.74638,2669.3,2668.8,3.74691]
[1724127922559,3.74647,2669.2,2668.9,0.17907278]
[1724127922764,3.74647,2669.2,2668.6,7.49437]
[1724127922968,3.74647,2669.2,2668.7,0.17924465]
[1724127923189,7.494,2668.8,2668.7,0.17924465]
[1724127923354,3.7476,2668.4,2667.8,27.29]
[1724127923562,3.7476,2668.4,2667.9,0.17412215]
[1724127923755,3.74785,2668.2,2667.9,0.17412215]
[1724127924289,3.7476,2668.4,2667.9,0.17412215]
[1724127924585,4.12236,2668.4,2667.9,0.17412215]
[1724127924736,3.74775,2668.3,2667.9,0.17412215]
[1724127928182,3.74812,2668.0,2667.9,0.17412215]
[1724127928478,3.7488,2667.6,2667.0,2.2793]
[1724127928677,6.11409,2667.5,2666.9,7.42]
[1724127928889,6.1141,2667.5,2666.8,0.80826063]
[1724127929089,6.1141,2667.5,2666.6,3.75007]
[1724127929090,3.74933,2667.2,2666.6,3.75007]
[1724127930420,3.7499,2666.8,2666.2,3.75065]
[1724127930792,3.7506,2666.3,2665.7,0.58732035]
[1724127930988,7.50123,2666.3,2665.6,3.7514]
[1724127931206,3.75066,2666.2,2665.6,3.7514]
[1724127931577,3.7506,2666.3,2665.6,3.7514]
[1724127931786,3.7506,2666.3,2665.6,0.37514]
[1724127932225,7.50123,2666.3,2665.6,4.12654]
[1724127932380,3.7506,2666.3,2665.6,4.12654]
[1724127932905,5.3652,2666.7,2665.3,2.2793]
[1724127932906,3.751,2666.0,2665.3,2.2793]
[1724127933109,3.75108,2665.9,2665.4,3.75176]
[1724127933315,3.75108,2665.9,2665.3,2.2793]
[1724127933677,3.75108,2665.9,2665.3,6.03113]
[1724127933987,6.235,2666.1,2665.5,3.75162]
[1724127934332,2.4842,2666.1,2665.6,3.75148]
[1724127934495,3.75055,2666.3,2665.6,3.75142]
[1724127934496,7.50116,2666.3,2665.6,3.75142]
[1724127934683,5.127986,2666.3,2665.6,3.75142]
[1724127934884,5.127986,2666.3,2665.6,7.50282]
[1724127935122,3.75081,2666.1,2665.4,7.50337]
[1724127935321,3.75081,2666.1,2665.5,3.75162]
[1724127935502,1.377436,2666.3,2665.8,3.75113]
[1724127936427,6.23461,2666.4,2665.8,3.75113]
[1724127938133,6.23461,2666.4,2665.9,0.17060057]
[1724127938439,6.23461,2666.4,2665.9,3.92166057]
[1724127938782,2.4842,2666.4,2665.9,3.92166057]
[1724127938982,3.0,2666.5,2665.9,3.92160057]
[1724127939226,6.01922,2667.0,2666.3,3.75039]
[1724127939424,2.2696,2667.0,2665.9,7.98276063]
[1724127939623,9.7688,2667.0,2666.4,3.92046005]
[1724127939827,3.74969,2666.9,2666.4,3.75029]
[1724127939992,0.976883,2666.8,2666.5,0.17107023]
[1724127940713,6.01914,2667.0,2666.4,3.75036]
[1724127940921,9.7688,2667.0,2666.6,0.17092959]
[1724127941104,3.0,2666.9,2666.5,0.17101567]
[1724127941290,4.27688,2666.9,2666.7,0.17084352]
[1724127941491,8.02659,2666.9,2666.6,0.17092959]
[1724127941811,7.49962,2666.8,2666.7,0.16510656]
[1724127942241,6.62918,2666.9,2665.9,7.42]
[1724127942242,3.75039,2666.4,2665.9,7.42]
[1724127942438,3.75039,2666.4,2665.8,3.75114]
[1724127942635,3.75039,2666.4,2666.0,0.16574096]
[1724127942860,3.75039,2666.4,2665.9,0.16582708]
[1724127943152,3.75039,2666.4,2665.8,3.75114]
[1724127943153,3.75039,2666.4,2666.0,0.16574096]
[1724127943334,3.75039,2666.4,2665.8,3.75113]
[1724127943716,3.75039,2666.4,2665.9,0.16582708]
[1724127944658,3.75084,2666.1,2665.9,0.16582708]
[1724127944954,3.75084,2666.1,2665.5,7.50319]
[1724127945154,3.75073,2666.2,2665.6,3.75148]
[1724127945321,2.4027,2666.3,2665.7,3.75128]
[1724127945524,6.15324,2666.3,2665.8,0.1659132]
[1724127945730,6.768554,2666.3,2665.7,3.75128]
[1724127945912,3.75068,2666.2,2665.8,0.1659132]
[1724127946112,3.75068,2666.2,2665.7,3.75128]
[1724127946454,6.768614,2666.3,2665.8,0.1659132]
[1724127946758,3.75084,2666.1,2665.5,7.50309]
[1724127946960,3.0,2666.2,2665.6,0.16608547]
[1724127947261,3.75065,2666.2,2665.6,3.91745547]
[1724127947421,3.0,2666.1,2665.6,3.91745547]
[1724127947627,2.4351,2666.0,2665.6,0.16608547]
[1724127947954,8.079395,2666.1,2665.6,0.16608547]
[1724127947955,13.7268,2665.7,2665.6,0.16608547]
[1724127948262,3.75174,2665.5,2664.7,3.75276]
[1724127948411,4.749324,2665.5,2664.7,3.75276]
[1724127948940,4.749314,2665.5,2664.7,3.75276]
[1724127950147,3.75154,2665.6,2664.9,3.75248]
[1724127950345,2.4351,2666.3,2665.3,3.7518]
[1724127950553,2.4351,2666.3,2665.3,11.1718]
[1724127950554,3.75104,2666.0,2665.3,11.1718]
[1724127950713,3.75121,2665.9,2665.3,7.42]
[1724127951764,7.50211,2666.0,2665.3,7.42]
[1724127951970,3.75132,2665.8,2665.3,7.42]
[1724127952326,7.50267,2665.8,2665.4,0.16121131]
[1724127952665,3.75132,2665.8,2665.4,0.16121131]
[1724127952824,3.7514,2665.7,2665.4,0.16121131]
[1724127953026,3.75132,2665.8,2665.4,0.16121131]
[1724127953569,8.3579111,2665.8,2665.1,3.75215]
[1724127953771,8.3579111,2665.8,2665.0,22.0787]
[1724127953772,7.0596711,2665.8,2665.0,22.0787]
[1724127953930,7.0596711,2665.8,2665.1,0.16146979]
[1724127953931,3.7515,2665.6,2665.1,0.16146979]
[1724127954478,3.75178,2665.4,2665.1,0.16146979]
[1724127954630,3.75178,2665.4,2664.7,13.48841]
[1724127954830,3.75178,2665.4,2665.2,0.16136412]
[1724127955030,3.75178,2665.4,2664.7,13.48841]
[1724127955231,3.75178,2665.4,2665.3,0.16127795]
[1724127955461,3.75178,2665.4,2664.8,3.75262]
[1724127955627,7.50311,2665.6,2665.3,0.16127795]
[1724127955829,4.6065211,2665.8,2664.7,9.7357]
[1724127956131,3.75127,2665.8,2665.2,2.3157]
[1724127956330,3.75127,2665.8,2665.3,0.16127795]
[1724127957231,7.254311,2666.0,2665.3,3.91318795]
[1724127957447,3.0,2665.9,2665.3,3.91308795]
[1724127957859,3.0,2665.9,2665.3,3.91307795]
[1724127958094,6.2041,2666.0,2665.3,4.53595574]
[1724127958265,2.4531,2666.7,2666.1,3.75071]
[1724127958463,3.75017,2666.6,2665.9,3.751]
[1724127958772,3.75027,2666.5,2665.9,3.751]
[1724127958980,0.750044,2666.4,2666.0,0.16072131]
[1724127960152,4.500424,2666.4,2666.0,0.16072131]
[1724127960347,4.500424,2666.4,2665.8,6.06687]
[1724127960547,4.500424,2666.4,2665.8,3.75117]
[1724127960776,0.750044,2666.4,2665.9,3.91181743]
[1724127960987,0.750044,2666.4,2665.9,0.16080743]
[1724127961144,4.500424,2666.4,2665.9,0.16080743]
[1724127961486,3.75038,2666.4,2665.9,0.16080743]
[1724127961689,3.75013,2666.6,2665.9,0.16080743]